lending/lending_fUSD_20250508
["ID","MTS","AMOUNT","RATE_DAILY","PERIOD"]
[360280105,1746694736199,-1200.0,0.00019798,2]
[360280106,1746694736221,-237.0,0.00019798,2]
[360280107,1746694736242,-7888.0806492,0.00019799,2]
[360280108,1746694736264,-276.6296521,0.000198,2]
[360280109,1746694736285,-200.0,0.00019802,2]
[360280110,1746694736307,-7888.0806492,0.00019807,2]
[360280111,1746694736329,-4270.67186321,0.00019846,2]
[360280112,1746694736353,-2362.88184991,0.00019858,2]
[360280113,1746694736374,-2362.88184991,0.00019861,2]
[360280114,1746694736395,-9782.63524314,0.00019866,2]
[360280115,1746694736417,-9782.63524314,0.0001987,2]
[360280116,1746694736438,-500.0,0.00019873,2]
[360280117,1746694736459,-4270.67186321,0.00019893,2]
[360280118,1746694736480,-491.66798847,0.000199,2]
[360280119,1746694736501,-222.75798381,0.000199,2]
[360280120,1746694736524,-491.66798846,0.000199,2]
[360280121,1746694736548,-491.66798846,0.00019901,2]
[360280122,1746694736571,-491.66798846,0.00019901,2]
[360280123,1746694736594,-491.66798846,0.00019901,2]
[360280124,1746694736618,-491.66798846,0.00019902,2]
[360280125,1746694736639,-491.66798846,0.00019902,2]
[360280126,1746694736661,-491.66798846,0.00019902,2]
[360280127,1746694736683,-491.66798846,0.00019903,2]
[360280128,1746694736706,-491.66798846,0.00019903,2]
[360280129,1746694736728,-463.27687774,0.00019928,2]
[360280130,1746694736748,-302.35007709,0.00019973,2]
[360280131,1746694736769,-504.80783379,0.00019973,2]
[360280132,1746694736789,-448.80620491,0.00019973,2]
[360280133,1746694736810,-153.33398973,0.00019973,2]
[360280134,1746694736832,-500.0,0.00019973,2]
[360280135,1746694736853,-500.0,0.00019973,2]
[360280136,1746694736874,-197.15,0.00019999,2]
[360280137,1746694736895,-12500.0,0.00019999,2]
[360280138,1746694736917,-168.39119269,0.00019999,2]
[360280139,1746694736938,-174.60444086,0.00019999,2]
[360280140,1746694736959,-150.53653714,0.00019999,2]
[360280141,1746694736982,-1601495.67508017,0.0002,2]
[360280142,1746694753508,500.0,0.0003,30]
[360280143,1746694806503,156.65,0.00030136,120]
[360280144,1746694811892,443.0,0.0003,30]
[360280145,1746694844236,509.15,0.0001764,2]
[360280148,1746694930347,2027.98,0.00019324,2]
[360280150,1746694966384,-416.63234,0.00019601,2]
[360280151,1746694966412,-480.58240718,0.000197,2]
[360280152,1746694966440,-500.0,0.00019873,2]
[360280153,1746694966470,-390.44567663,0.00019873,2]
[360280154,1746694966498,-250.0,0.00019886,2]
[360280155,1746694966528,-1200.0,0.00019899,2]
[360280156,1746694966558,-7131.30012531,0.000199,2]
[360280157,1746694966589,-1000.0,0.000199,2]
[360280158,1746694966617,-1000.0,0.000199,2]
[360280159,1746694966654,-2187.0735,0.000199,2]
[360280160,1746694966684,-308.85125182,0.000199,2]
[360280161,1746694966718,-7131.30012528,0.00019901,2]
[360280162,1746694966751,-2336.522,0.00019901,2]
[360280163,1746694966779,-169.028,0.00019901,2]
[360280164,1746694966808,-7131.30012528,0.00019901,2]
[360280165,1746694966842,-7131.30012528,0.00019902,2]
[360280166,1746694966871,-7131.30012528,0.00019902,2]
[360280167,1746694966899,-7131.30012528,0.00019903,2]
[360280168,1746694966928,-7131.30012528,0.00019903,2]
[360280169,1746694966955,-509.15,0.00019904,2]
[360280170,1746694966984,-7131.30012528,0.00019904,2]
[360280171,1746694967013,-7131.30012528,0.00019904,2]
[360280172,1746694967042,-7131.30012528,0.00019905,2]
[360280173,1746694967070,-480.58240718,0.0001994,2]
[360280174,1746694967098,-500.0,0.00019973,2]
[360280175,1746694967126,-246.7956604,0.00019973,2]
[360280176,1746694967153,-500.0,0.00019973,2]
[360280177,1746694967182,-500.0,0.00019973,2]
[360280178,1746694967210,-500.5011836,0.00019973,2]
[360280179,1746694967237,-500.0,0.00019973,2]
[360280180,1746694967265,-500.0,0.00019973,2]
[360280181,1746694967296,-500.0,0.00019973,2]
[360280182,1746694967325,-500.0,0.00019973,2]
[360280183,1746694967359,-151.0,0.00019988,2]
[360280184,1746694967389,-168.91563719,0.0001999,2]
[360280185,1746694967424,-300.0,0.00019999,2]
[360280186,1746694967455,-500.0,0.00019999,2]
[360280187,1746694967485,-683.22783114,0.00019999,2]
[360280188,1746694967515,-174.53949341,0.00019999,2]
[360280189,1746694967544,-177.05973691,0.00019999,2]
[360280190,1746694967570,-416.63234,0.0002,2]
[360280191,1746694967602,-480.58240718,0.0002,2]
[360280192,1746694967635,-500.0,0.0002,2]
[360280193,1746694967646,-390.44567663,0.0002,2]
[360280194,1746694967663,-250.0,0.0002,2]
[360280195,1746694967695,-1200.0,0.0002,2]
[360280196,1746694967708,-7131.30012531,0.0002,2]
[360280197,1746694967719,-1000.0,0.0002,2]
[360280198,1746694967750,-1000.0,0.0002,2]
[360280199,1746694967781,-2187.0735,0.0002,2]
[360280200,1746694967828,-308.85125182,0.0002,2]
[360280201,1746694967845,-7131.30012528,0.0002,2]
[360280202,1746694967861,-2336.522,0.0002,2]
[360280203,1746694967890,-169.028,0.0002,2]
[360280204,1746694967907,-7131.30012528,0.0002,2]
[360280205,1746694967919,-7131.30012528,0.0002,2]
[360280206,1746694967931,-7131.30012528,0.0002,2]
[360280207,1746694967960,-7131.30012528,0.0002,2]
[360280208,1746694967994,-7131.30012528,0.0002,2]
[360280209,1746694968007,-509.15,0.0002,2]
[360280210,1746694968019,-7131.30012528,0.0002,2]
[360280211,1746694968032,-7131.30012528,0.0002,2]
[360280212,1746694968064,-7131.30012528,0.0002,2]
[360280213,1746694968076,-480.58240718,0.0002,2]
[360280214,1746694968088,-500.0,0.0002,2]
[360280215,1746694968100,-246.7956604,0.0002,2]
[360280216,1746694968275,-500.0,0.0002,2]
[360280217,1746694968379,-500.0,0.0002,2]
[360280218,1746694968416,-500.5011836,0.0002,2]
[360280219,1746694968429,-500.0,0.0002,2]
[360280220,1746694968441,-500.0,0.0002,2]
[360280221,1746694968452,-500.0,0.0002,2]
[360280222,1746694968464,-500.0,0.0002,2]
[360280223,1746694968480,-151.0,0.0002,2]
[360280224,1746694968546,-168.91563719,0.0002,2]
[360280225,1746694968639,-300.0,0.0002,2]
[360280226,1746694968652,-500.0,0.0002,2]
[360280227,1746694968681,-683.22783114,0.0002,2]
[360280228,1746694968698,-174.53949341,0.0002,2]
[360280229,1746694968711,-177.05973691,0.0002,2]
[360280230,1746694968724,-452894.16324342,0.0002,2]
[360280231,1746694997063,314.47,0.00019086,2]
[360280232,1746694998711,500.0,0.00030137,120]
[360280233,1746695003450,334.85,0.0003,30]
[360280234,1746695055129,500.0,0.0003,30]
[360280237,1746695060627,333.0,0.00030136,120]
[360280238,1746695101665,2626.34750535,0.00030137,120]
[360280239,1746695195068,333.0,0.0003,30]
[360280240,1746695245814,299.0,0.0002945,44]
[360280241,1746695279781,4009.96,0.0003,30]
[360280242,1746695295356,333.0,0.0002945,44]
[360280243,1746695309139,3012.14,0.0003,30]
[360280244,1746695324431,50000.0,0.0003,30]
[360280245,1746695326403,3000.0,0.0003,30]
[360280246,1746695329187,455.0,0.0003,30]
[360280247,1746695395034,388.0,0.00030136,120]
[360280248,1746695412449,500.0,0.0003,30]
[360280257,1746695432095,-1200.0,0.00019899,2]
[360280258,1746695432106,-250.0,0.000199,2]
[360280259,1746695432116,-769.999976,0.000199,2]
[360280260,1746695432128,-96.93823369,0.000199,2]
[360280261,1746695432138,-290.04176631,0.000199,2]
[360280262,1746695432151,-447.14101808,0.000199,2]
[360280263,1746695432173,-1029.74467377,0.000199,2]
[360280264,1746695432184,-205.90083456,0.000199,2]
[360280265,1746695432194,-347.31953854,0.000199,2]
[360280266,1746695432205,-4127.01237693,0.000199,2]
[360280267,1746695432218,-1815.3649273,0.000199,2]
[360280268,1746695432251,-3474.1595546,0.000199,2]
[360280269,1746695432261,-167.96606202,0.000199,2]
[360280270,1746695432271,-200.48218542,0.000199,2]
[360280272,1746695432280,-500.0,0.00019973,2]
[360280274,1746695432290,-500.0,0.00019973,2]
[360280276,1746695432300,-500.0,0.00019973,2]
[360280277,1746695432310,-500.0,0.00019973,2]
[360280278,1746695432320,-1000.0,0.0001999,2]
[360280279,1746695432331,-1000.0,0.0001999,2]
[360280280,1746695432342,-1000.0,0.0001999,2]
[360280281,1746695432352,-1000.0,0.0001999,2]
[360280282,1746695432362,-140.04373667,0.0001999,2]
[360280285,1746695432393,-575.44089738,0.0001999,2]
[360280287,1746695432405,-284.51536595,0.0001999,2]
[360280289,1746695432415,-300.0,0.00019999,2]
[360280291,1746695432424,-58.45984871,0.00019999,2]
[360280344,1746695437905,-330.49919312,0.000199,2]
[360280349,1746695438208,-44.338243,0.000199,2]
[360280351,1746695438219,-441.54015129,0.00019999,2]
[360280353,1746695438229,-11.44163378,0.00019999,2]
[360280357,1746695438256,-198.11836622,0.00019999,2]
[360280359,1746695438266,-150.0,0.00019999,2]
[360280361,1746695438276,-150.0,0.00019999,2]
[360280363,1746695438286,-150.0,0.00019999,2]
[360280365,1746695438296,-150.0,0.00019999,2]
[360280367,1746695438306,-150.0,0.00019999,2]
[360280369,1746695438316,-150.0,0.00019999,2]
[360280371,1746695438326,-2000.0,0.0002,4]
[360280373,1746695438336,-19284.78472434,0.0002,2]
[360280376,1746695438347,-430.22214522,0.0002,2]
[360280416,1746695440434,-614.704,0.000199,2]
[360280417,1746695440489,-4385.296,0.000199,2]
[360280418,1746695440498,-5044.37500035,0.0002,2]
[360280419,1746695440596,-997.31879421,0.0002,2]
[360280420,1746695440664,-436.74,0.0002,2]
[360280421,1746695440767,-497.9702656,0.0002,2]
[360280422,1746695440788,-848929.64093764,0.0002,2]
[360280423,1746695440866,-18566.2,0.0002,2]
[360280430,1746695442919,-1567.17304762,0.0002,2]
[360280431,1746695442931,-530.18136062,0.0002,2]
[360280432,1746695442942,-312.9420015,0.0002,2]
[360280433,1746695443024,-5022.48502982,0.0002,2]
[360280434,1746695443392,-0.00292487,0.0002,2]
[360280438,1746695443420,-2441.93467861,0.0002,2]
[360280444,1746695443468,-327.49954367,0.0002,2]
[360280446,1746695443480,-348.08132004,0.0002,2]
[360280697,1746695445989,-660.12715999,0.0002,2]
[360280698,1746695446049,-13886.31433615,0.0002,2]
[360280725,1746695446480,-0.00225217,0.0002,2]
[360280726,1746695446492,-560.11667776,0.0002,2]
[360280727,1746695446510,-2056.07506595,0.0002,2]
[360280728,1746695446569,-611.6663665,0.0002,2]
[360280729,1746695446636,-23700.42709423,0.0002,2]
[360280730,1746695446648,-599.38775637,0.0002,2]
[360280731,1746695446732,-19349.48317737,0.0002,2]
[360280732,1746695446745,-2433.27951172,0.0002,2]
[360280733,1746695467794,425.0,0.0003,30]
[360280734,1746695510958,588.0,0.00030136,120]
[360280735,1746695528243,500.0,0.0003,30]
[360280736,1746695555575,544.0,0.0002945,44]
[360280739,1746695594447,4733.1510318,0.0003,30]
[360280740,1746695654197,150.0,0.0003,30]
[360280741,1746695656044,500.0,0.0003,30]
[360280742,1746695660809,150.0,0.0003,30]
[360280743,1746695661706,150.0,0.0003,30]
[360280745,1746695769824,191.08241789,0.0003,30]
[360280746,1746695771944,500.0,0.0003,30]
[360280747,1746695835270,150.0,0.0003,30]
[360280748,1746695841559,150.0,0.0003,30]
[360280749,1746695843990,150.0,0.0003,30]
[360280750,1746695870987,516.06,0.00017256,2]
[360280751,1746695875330,3618.76514771,0.0003013,120]
[360280752,1746695942400,1131.70501078,0.0002,5]
[360280755,1746696063537,150.32704296,0.0003,30]
[360280756,1746696064856,150.0,0.0003,30]
[360280757,1746696066428,500.0,0.0003,30]
[360280758,1746696068124,150.0,0.0003,30]
[360280759,1746696069438,150.0,0.0003,30]
[360280760,1746696070483,500.0,0.0003,30]
[360280761,1746696071693,500.0,0.0003,30]
[360280762,1746696078120,150.0,0.0003,30]
[360280763,1746696079094,150.0,0.0003,30]
[360280764,1746696082890,250.0,0.00017,2]
[360280765,1746696083727,168.31,0.00019,2]
[360280766,1746696083752,131.69,0.00019,2]
[360280767,1746696084620,150.0,0.0003,30]
[360280768,1746696137299,500.0,0.0003,30]
[360280769,1746696160206,2915.20380978,0.0003,120]
[360280779,1746696243621,339.42,0.00019138,2]
[360280781,1746696246723,150.0,0.0003,30]
[360280782,1746696271715,158.5213762,0.00019452,2]
[360280783,1746696272444,8215.2123993,0.000301,120]
[360280784,1746696278223,2000.0,0.0003,30]
[360280785,1746696345658,2000.0,0.000195,2]
[360280786,1746696357616,2000.0,0.000195,2]
[360280787,1746696358432,260.429,0.00030137,120]
[360280789,1746696372645,2000.0,0.000195,2]
[360280791,1746696381782,2000.0,0.000195,2]
[360280794,1746696435632,500.0,0.0003,30]
[360280795,1746696438342,150.0,0.0003,30]
[360280796,1746696439432,500.0,0.00029589,30]
[360280797,1746696439917,194.86866157,0.00029863,30]
[360280798,1746696448782,15000.0,0.0003,30]
[360280801,1746696470792,5597.02445199,0.0003,120]
[360280804,1746696522366,3754.49880561,0.000151,2]
[360280808,1746696545217,20000.0,0.0003,30]
[360280812,1746696599290,2608.14,0.00019035,2]
[360280833,1746696632400,-1200.0,0.00019518,2]
[360280835,1746696632410,-300.0,0.00019518,2]
[360280837,1746696632420,-2535.07271412,0.00019519,2]
[360280840,1746696632431,-1084.12496263,0.00019519,2]
[360281140,1746696638245,-4454.0,0.00019519,2]
[360281141,1746696638279,-10733.71368094,0.00019519,2]
[360281142,1746696638389,-5575.18172942,0.00019519,2]
[360281143,1746696638400,-516.06,0.0001952,2]
[360281144,1746696638410,-636.87,0.00019596,2]
[360281145,1746696638420,-199.31543314,0.000196,2]
[360281146,1746696638431,-776.60042709,0.00019622,2]
[360281147,1746696638440,-1000.0,0.00019644,2]
[360281148,1746696638450,-2506.01441521,0.000197,2]
[360281149,1746696638460,-276.66902567,0.0001975,2]
[360281150,1746696638470,-1891.34603807,0.00019781,2]
[360281151,1746696638480,-182.75423559,0.00019781,2]
[360281152,1746696638490,-200.0,0.00019817,2]
[360281154,1746696638500,-776.6004271,0.00019832,2]
[360281156,1746696638510,-1891.34603807,0.00019848,2]
[360281158,1746696638520,-1416.8106696,0.00019868,2]
[360281332,1746696640230,-203.19488259,0.00019868,2]
[360281334,1746696640240,-200.0,0.00019887,2]
[360281336,1746696640251,-151.0,0.00019888,2]
[360281338,1746696640260,-199.31543314,0.0001989,2]
[360281340,1746696640270,-343.43968427,0.00019897,2]
[360281344,1746696640302,-287.59839992,0.00019897,2]
[360281346,1746696640312,-330.62471645,0.00019897,2]
[360281357,1746696640411,-996.45,0.00019897,2]
[360281361,1746696640437,-292.93083574,0.00019897,2]
[360281363,1746696640448,-2278.8221,0.00019899,2]
[360281365,1746696640458,-991.8587,0.00019899,2]
[360281367,1746696640468,-3088.08130859,0.000199,2]
[360281369,1746696640480,-1469.87649141,0.000199,2]
[360281371,1746696640491,-809.5185,0.000199,2]
[360281373,1746696640500,-539.4871,0.000199,2]
[360281375,1746696640510,-168.42863539,0.000199,2]
[360281377,1746696640520,-321.18454016,0.000199,2]
[360281379,1746696640530,-244.94662972,0.000199,2]
[360281382,1746696640542,-282.57682101,0.000199,2]
[360281384,1746696640552,-249.57155509,0.000199,2]
[360281386,1746696640561,-239.13301398,0.000199,2]
[360281388,1746696640571,-231.54635902,0.000199,2]
[360281390,1746696640580,-321.18454013,0.00019948,2]
[360281392,1746696640590,-500.0,0.00019973,2]
[360281394,1746696640600,-500.0,0.00019973,2]
[360281396,1746696640609,-501.87724418,0.00019973,2]
[360281398,1746696640618,-182.48467434,0.00019973,2]
[360281400,1746696640628,-500.0,0.00019973,2]
[360281402,1746696640638,-500.0,0.00019973,2]
[360281404,1746696640648,-500.0,0.00019973,2]
[360281406,1746696640658,-501.6822209,0.00019973,2]
[360281408,1746696640668,-500.0,0.00019973,2]
[360281410,1746696640678,-500.0,0.00019973,2]
[360281412,1746696640688,-608.63623187,0.00019973,2]
[360281414,1746696640697,-500.0,0.00019973,2]
[360281416,1746696640707,-500.78506939,0.00019973,2]
[360281418,1746696640717,-36394.02398152,0.0001998,2]
[360281420,1746696640726,-12500.0,0.0001999,2]
[360281422,1746696640736,-321.18454013,0.00019996,2]
[360281424,1746696640745,-24245.64450001,0.00019996,2]
[360281426,1746696640755,-385.0,0.00019999,2]
[360281428,1746696640764,-12500.0,0.00019999,2]
[360281429,1746696640774,-200.83,0.00019999,2]
[360281431,1746696640783,-150.0,0.00019999,2]
[360281434,1746696640794,-171.23498485,0.00019999,2]
[360281436,1746696640804,-263.77100729,0.00019999,2]
[360281438,1746696640814,-205.04003939,0.00019999,2]
[360281440,1746696640823,-205.75743288,0.00019999,2]
[360281442,1746696640834,-166.52939829,0.00019999,2]
[360281444,1746696640844,-454445.14561643,0.0002,2]
[360281446,1746696640853,-17138.19,0.0002,2]
[360281448,1746696640863,-278464.36981026,0.0002,2]
[360281807,1746696646303,-187.82673636,0.00019993,2]
[360281808,1746696646313,-600.79653664,0.00019993,2]
[360281809,1746696646566,-1431.37143224,0.00019993,2]
[360281810,1746696646575,-500.0,0.00019993,2]
[360281811,1746696646586,-2032.16796888,0.00019993,2]
[360281812,1746696646596,-500.0,0.00019993,2]
[360281813,1746696646606,-2032.16796888,0.00019993,2]
[360281814,1746696646615,-500.0,0.00019993,2]
[360281815,1746696646626,-2032.16796888,0.00019993,2]
[360281817,1746696646637,-500.0,0.00019993,2]
[360281819,1746696646647,-2032.16796888,0.00019993,2]
[360281821,1746696646656,-500.0,0.00019993,2]
[360281822,1746696646666,-2032.16796888,0.00019993,2]
[360281823,1746696646675,-2032.16796888,0.00019993,2]
[360281824,1746696646684,-416.0,0.00019993,2]
[360281825,1746696646694,-2032.16796888,0.00019993,2]
[360281826,1746696646704,-2032.16796888,0.00019993,2]
[360281827,1746696646714,-2032.16796888,0.00019993,2]
[360281828,1746696646723,-2032.16796888,0.00019993,2]
[360281829,1746696646732,-2032.16796888,0.00019993,2]
[360281830,1746696646742,-2032.16796888,0.00019993,2]
[360281831,1746696646751,-2032.16796888,0.00019993,2]
[360281832,1746696646760,-2032.16796888,0.00019993,2]
[360281833,1746696646770,-228.88237885,0.00019993,2]
[360281834,1746696646781,-458.68786259,0.00019993,2]
[360281835,1746696646792,-1344.59772744,0.00019993,2]
[360281836,1746696646803,-2032.16796888,0.00019993,2]
[360281837,1746696646813,-2032.16796888,0.00019993,2]
[360281838,1746696646823,-2032.16796888,0.00019993,2]
[360281839,1746696646832,-2032.16796888,0.00019993,2]
[360281840,1746696646843,-2032.16796888,0.00019993,2]
[360281841,1746696646855,-2032.16796888,0.00019993,2]
[360281842,1746696646865,-2032.16796888,0.00019993,2]
[360281843,1746696646875,-2032.16796888,0.00019993,2]
[360281844,1746696646886,-2032.16796888,0.00019993,2]
[360281845,1746696646896,-2032.16796888,0.00019993,2]
[360281846,1746696646906,-2032.16796888,0.00019993,2]
[360281847,1746696646918,-2032.16796888,0.00019993,2]
[360281848,1746696646927,-1418658.17109708,0.0002,2]
[360281849,1746696646979,-8185.33439727,0.0002,2]
[360281851,1746696669438,150.0,0.0003,30]
[360281852,1746696673314,150.0,0.0003,30]
[360281853,1746696675540,500.0,0.0003,30]
[360281854,1746696681116,150.0,0.0003,30]
[360281855,1746696682440,250.50317372,0.0003,30]
[360281856,1746696683496,150.0,0.0003,30]
[360281857,1746696794324,500.0,0.0003,30]
[360281858,1746696850226,151.03816042,0.0003,30]
[360281859,1746696851528,150.0,0.0003,30]
[360281860,1746696900754,6221.10195638,0.0003,30]
[360281861,1746696902270,1000.0,0.00018899,2]
[360281862,1746696923456,464.45,0.0001698,2]
[360281863,1746696923770,464.45,0.00019244,2]
[360281864,1746696928319,3000.0,0.0003,30]
[360281865,1746697036385,250.0,0.0003,30]
[360281866,1746697095257,500.0,0.0003,30]
[360281867,1746697116595,962.62605,0.000195,2]
[360281868,1746697120210,250.0,0.0003,35]
[360281869,1746697246761,4000.0,0.0003,30]
[360281871,1746697335471,150.0,0.0003,30]
[360281872,1746697337791,150.67423538,0.0003,30]
[360281873,1746697338909,150.0,0.0003,30]
[360281874,1746697341259,500.0,0.0003,30]
[360281875,1746697403529,200.0,0.00019344,2]
[360281876,1746697447535,197.74055753,0.0003,30]
[360281877,1746697476402,514.17303192,0.00029589,30]
[360281878,1746697477134,169.71,0.00018821,2]
[360281880,1746697664768,916.51,0.000195,2]
[360281881,1746697685764,150.0,0.0003,30]
[360281882,1746697688794,151.06895318,0.0003,30]
[360281883,1746697690890,219.09230074,0.0003,30]
[360281884,1746697692634,150.0,0.0003,30]
[360281885,1746697697560,150.0,0.0003,30]
[360281887,1746697714118,22506.98,0.00018798,2]
[360281888,1746697753600,500.0,0.0003,30]
[360281900,1746697832217,-300.0,0.00019691,2]
[360281901,1746697832228,-185.0,0.00019692,2]
[360281902,1746697832240,-298.95,0.00019692,2]
[360281903,1746697832341,-563.70807734,0.00019692,2]
[360281904,1746697832354,-417.1601092,0.00019692,2]
[360281905,1746697832366,-1317.54103633,0.00019692,2]
[360281906,1746697832376,-217.81015922,0.00019692,2]
[360281907,1746697832389,-486.20571737,0.00019692,2]
[360281908,1746697832464,-495.98412341,0.00019692,2]
[360281909,1746697832474,-300.0,0.00019692,2]
[360281910,1746697832484,-250.0,0.00019692,2]
[360281911,1746697832494,-5473.33037298,0.00019693,2]
[360281912,1746697832505,-2939.9663144,0.00019693,2]
[360281914,1746697832551,-1502.46852206,0.00019693,2]
[360281916,1746697832564,-514.49000001,0.00019693,2]
[360281919,1746697832576,-16377.24809055,0.00019693,2]
[360281921,1746697832586,-457.78,0.00019693,2]
[360281923,1746697832598,-850.0,0.00019695,2]
[360281925,1746697832609,-250.0,0.00019697,2]
[360281927,1746697832619,-458.421,0.00019702,2]
[360281929,1746697832630,-2782.35922285,0.00019715,2]
[360281931,1746697832640,-2387.1521,0.00019721,2]
[360281933,1746697832649,-592.44999141,0.00019726,2]
[360281935,1746697832659,-2782.35922285,0.00019738,2]
[360281937,1746697832668,-21494.8702,0.00019755,2]
[360281939,1746697832678,-3083.098,0.00019755,2]
[360281941,1746697832688,-1153.4229,0.00019755,2]
[360281943,1746697832698,-2782.35922285,0.00019761,2]
[360281945,1746697832708,-501.36634107,0.00019773,2]
[360281947,1746697832718,-186.05218341,0.00019773,2]
[360281949,1746697832728,-501.69718068,0.00019773,2]
[360281951,1746697832737,-162.3301023,0.00019773,2]
[360281953,1746697832747,-500.0,0.00019773,2]
[360281955,1746697832757,-500.0,0.00019773,2]
[360281957,1746697832767,-500.25609983,0.00019773,2]
[360281959,1746697832777,-500.0,0.00019773,2]
[360281961,1746697832786,-500.0,0.00019773,2]
[360281963,1746697832796,-303.30612156,0.00019773,2]
[360281965,1746697832806,-500.0,0.00019773,2]
[360281967,1746697832816,-514.89907459,0.00019773,2]
[360281969,1746697832827,-182.48467434,0.00019773,2]
[360281971,1746697832837,-500.0,0.00019773,2]
[360281973,1746697832846,-500.0,0.00019773,2]
[360281975,1746697832856,-500.0,0.00019773,2]
[360281977,1746697832866,-161.68396212,0.00019773,2]
[360281979,1746697832875,-500.0,0.00019773,2]
[360281981,1746697832885,-160.25801302,0.00019773,2]
[360281983,1746697832894,-500.0,0.00019773,2]
[360281985,1746697832904,-151.0,0.00019775,2]
[360281987,1746697832914,-36394.02398152,0.00019777,2]
[360281989,1746697832923,-264.29344141,0.00019779,2]
[360281991,1746697832932,-170.70739079,0.00019779,2]
[360281993,1746697832943,-2782.35922285,0.00019784,2]
[360281995,1746697832953,-59161.25117823,0.00019787,2]
[360281997,1746697832963,-6734.6775,0.00019792,2]
[360281999,1746697832973,-539.4871,0.00019792,2]
[360282000,1746697832982,-8228.365747,0.00019793,2]
[360282001,1746697832991,-5609.35019225,0.00019801,2]
[360282002,1746697833001,-23565.61904419,0.00019802,2]
[360282003,1746697833011,-200.0,0.00019802,2]
[360282004,1746697833020,-2782.35922285,0.00019808,2]
[360282005,1746697833030,-1069.83799185,0.00019815,2]
[360282006,1746697833040,-404.34606557,0.00019826,2]
[360282007,1746697833050,-2782.35922285,0.00019831,2]
[360282008,1746697833060,-2782.35922285,0.00019854,2]
[360282009,1746697833069,-5609.35019225,0.00019855,2]
[360282010,1746697833078,-2950.86591307,0.00019855,2]
[360282011,1746697833091,-2390.42900959,0.00019855,2]
[360282012,1746697833103,-200.0,0.00019857,2]
[360282013,1746697833113,-225.08757674,0.00019858,2]
[360282014,1746697833123,-3496.69489648,0.0001986,2]
[360282015,1746697833132,-8228.365747,0.00019863,2]
[360282016,1746697833142,-404.34606557,0.00019866,2]
[360282017,1746697833152,-1000.0,0.00019873,2]
[360282018,1746697833162,-776.0,0.00019873,2]
[360282019,1746697833172,-500.0,0.00019873,2]
[360282021,1746697833182,-167.41625362,0.00019873,2]
[360282023,1746697833192,-317.65310063,0.00019873,2]
[360282025,1746697833202,-500.0,0.00019873,2]
[360282026,1746697833212,-3496.69489648,0.00019874,2]
[360282029,1746697833222,-2782.35922285,0.00019877,2]
[360282031,1746697833231,-500.0,0.0001988,2]
[360282033,1746697833242,-3246.39613941,0.0001988,2]
[360282035,1746697833251,-3246.39613941,0.0001988,2]
[360282037,1746697833261,-184.0,0.0001988,2]
[360282039,1746697833271,-3246.39613941,0.0001988,2]
[360282041,1746697833280,-3246.39613941,0.0001988,2]
[360282043,1746697833290,-3246.39613941,0.0001988,2]
[360282045,1746697833300,-3246.39613941,0.0001988,2]
[360282047,1746697833311,-3246.39613941,0.0001988,2]
[360282049,1746697833321,-3246.39613941,0.0001988,2]
[360282051,1746697833330,-3246.39613941,0.0001988,2]
[360282053,1746697833340,-3246.39613941,0.0001988,2]
[360282055,1746697833350,-3246.39613941,0.0001988,2]
[360282056,1746697833359,-3246.39613941,0.0001988,2]
[360282057,1746697833370,-3246.39613941,0.0001988,2]